[Event "*** Titled Tuesday Blitz"]
[Site "Chess.com"]
[Date "2020.04.07"]
[Round "5"]
[White "ferdipy"]
[Black "DishonorOnYourCow"]
[Result "0-1"]
[WhiteElo "2159"]
[BlackElo "2335"]
[TimeControl "180+1"]
[EndTime "13:56:44 PDT"]
[Termination "DishonorOnYourCow won on time"]

1. e4 {[%clk 0:03:00.9]} 1... c5 {[%clk 0:02:57.8]} 2. d4 {[%clk 0:02:59.9]}
2... cxd4 {[%clk 0:02:54.8]} 3. c3 {[%clk 0:02:58.3]} 3... d3 {[%clk 0:02:53.3]}
4. c4 {[%clk 0:02:58]} 4... d6 {[%clk 0:02:53.6]} 5. Bxd3 {[%clk 0:02:58]} 5...
Nf6 {[%clk 0:02:53.3]} 6. Nf3 {[%clk 0:02:58.9]} 6... g6 {[%clk 0:02:53.1]} 7.
h3 {[%clk 0:02:59.5]} 7... Bg7 {[%clk 0:02:53.5]} 8. O-O {[%clk 0:02:58.9]} 8...
O-O {[%clk 0:02:53]} 9. Nc3 {[%clk 0:02:59.8]} 9... a6 {[%clk 0:02:52.6]} 10.
Be3 {[%clk 0:02:39.8]} 10... Nbd7 {[%clk 0:02:39.7]} 11. Qd2 {[%clk 0:02:37.4]}
11... Nc5 {[%clk 0:02:36.6]} 12. e5 {[%clk 0:02:26.6]} 12... Ne8 {[%clk
0:01:59.1]} 13. Bxc5 {[%clk 0:02:17.1]} 13... dxc5 {[%clk 0:02:00]} 14. Qe3
{[%clk 0:02:11.6]} 14... e6 {[%clk 0:01:38.9]} 15. Qxc5 {[%clk 0:02:09.9]} 15...
Qxd3 {[%clk 0:01:36.7]} 16. Rad1 {[%clk 0:01:59.4]} 16... Qf5 {[%clk 0:01:32.6]}
17. Ne2 {[%clk 0:01:58.1]} 17... b5 {[%clk 0:01:28.5]} 18. cxb5 {[%clk
0:01:53.6]} 18... axb5 {[%clk 0:01:28.4]} 19. Ng3 {[%clk 0:01:53.4]} 19... Qf4
{[%clk 0:01:24.5]} 20. Rd4 {[%clk 0:01:50.6]} 20... Qh6 {[%clk 0:01:22.4]} 21.
Rh4 {[%clk 0:01:47.7]} 21... Qxh4 {[%clk 0:01:01.7]} 22. Nxh4 {[%clk 0:01:48.6]}
22... Ba6 {[%clk 0:01:01.7]} 23. b4 {[%clk 0:01:45.2]} 23... Bh6 {[%clk
0:00:57.4]} 24. Nf3 {[%clk 0:01:38.7]} 24... Ng7 {[%clk 0:00:57.1]} 25. Rd1
{[%clk 0:01:37]} 25... Rfc8 {[%clk 0:00:56]} 26. Qb6 {[%clk 0:01:23.6]} 26...
Rcb8 {[%clk 0:00:52.5]} 27. Qd6 {[%clk 0:01:12.6]} 27... Bb7 {[%clk 0:00:50.1]}
28. Nd4 {[%clk 0:01:04.2]} 28... Bg5 {[%clk 0:00:41.4]} 29. Nxb5 {[%clk
0:00:54.3]} 29... Rd8 {[%clk 0:00:41.1]} 30. Qc7 {[%clk 0:00:46.7]} 30... Rxd1+
{[%clk 0:00:40.1]} 31. Kh2 {[%clk 0:00:47.4]} 31... Ba6 {[%clk 0:00:29.1]} 32.
Nd6 {[%clk 0:00:47]} 32... Rd2 {[%clk 0:00:15.7]} 33. Qxf7+ {[%clk 0:00:42.6]}
33... Kh8 {[%clk 0:00:15.9]} 34. b5 {[%clk 0:00:37.2]} 34... Bxb5 {[%clk
0:00:14.4]} 35. Nxb5 {[%clk 0:00:36.6]} 35... Nf5 {[%clk 0:00:13.8]} 36. Nxf5
{[%clk 0:00:33.6]} 36... gxf5 {[%clk 0:00:13.8]} 37. Kg3 {[%clk 0:00:25.3]}
37... f4+ {[%clk 0:00:11.5]} 38. Kg4 {[%clk 0:00:24.7]} 38... Bh6 {[%clk
0:00:11.8]} 39. Qf6+ {[%clk 0:00:22.4]} 39... Bg7 {[%clk 0:00:11.9]} 40. Qxf4
{[%clk 0:00:21.1]} 40... Rdxa2 {[%clk 0:00:10.1]} 41. Kh5 {[%clk 0:00:13.8]}
41... R2a5 {[%clk 0:00:09.7]} 42. Qc4 {[%clk 0:00:07.8]} 42... Rb8 {[%clk
0:00:08.8]} 43. Nc7 {[%clk 0:00:02.3]} 43... Bxe5 {[%clk 0:00:07.4]} 0-1

[Event "*** Titled Tuesday Blitz"]
[Site "Chess.com"]
[Date "2020.04.07"]
[Round "5"]
[White "canary2016"]
[Black "KerryStead"]
[Result "0-1"]
[WhiteElo "1821"]
[BlackElo "2162"]
[TimeControl "180+1"]
[EndTime "13:56:44 PDT"]
[Termination "KerryStead won by resignation"]

1. Nf3 {[%clk 0:03:00.9]} 1... d5 {[%clk 0:02:54.8]} 2. c4 {[%clk 0:02:59.3]}
2... d4 {[%clk 0:02:52.7]} 3. b4 {[%clk 0:02:58.5]} 3... a5 {[%clk 0:02:48.9]}
4. b5 {[%clk 0:02:53.6]} 4... c5 {[%clk 0:02:48.1]} 5. Bb2 {[%clk 0:02:53.3]}
5... b6 {[%clk 0:02:46.5]} 6. g3 {[%clk 0:02:53.1]} 6... Bb7 {[%clk 0:02:45.2]}
7. Bg2 {[%clk 0:02:53.3]} 7... Qc7 {[%clk 0:02:45.1]} 8. O-O {[%clk 0:02:52.1]}
8... Nd7 {[%clk 0:02:44.8]} 9. e3 {[%clk 0:02:50.2]} 9... e5 {[%clk 0:02:38.2]}
10. Re1 {[%clk 0:02:47.1]} 10... Be7 {[%clk 0:02:32.2]} 11. exd4 {[%clk
0:02:44.5]} 11... cxd4 {[%clk 0:02:31.9]} 12. Qc2 {[%clk 0:02:37.8]} 12... Rc8
{[%clk 0:02:26.3]} 13. d3 {[%clk 0:02:35.9]} 13... f6 {[%clk 0:02:24.1]} 14.
Nbd2 {[%clk 0:02:34]} 14... Nh6 {[%clk 0:02:19.7]} 15. Qd1 {[%clk 0:02:31.5]}
15... Nf7 {[%clk 0:02:16]} 16. Qe2 {[%clk 0:02:31.4]} 16... O-O {[%clk
0:02:15.2]} 17. Ne4 {[%clk 0:02:25.4]} 17... Bb4 {[%clk 0:02:11.6]} 18. Ned2
{[%clk 0:02:22.3]} 18... Nc5 {[%clk 0:02:07.2]} 19. a3 {[%clk 0:02:13.1]} 19...
Bxd2 {[%clk 0:02:06.3]} 20. Nxd2 {[%clk 0:02:13.1]} 20... Bxg2 {[%clk 0:02:04]}
21. Kxg2 {[%clk 0:02:13.2]} 21... Na4 {[%clk 0:01:52.4]} 22. Ne4 {[%clk
0:02:09.7]} 22... Nd6 {[%clk 0:01:45.8]} 23. Nxd6 {[%clk 0:02:05.2]} 23... Qxd6
{[%clk 0:01:45.5]} 24. Qc2 {[%clk 0:02:03.8]} 24... Nxb2 {[%clk 0:01:44.9]} 25.
Qxb2 {[%clk 0:02:03.8]} 25... Qc5 {[%clk 0:01:39.1]} 26. Qe2 {[%clk 0:02:01.5]}
26... Rce8 {[%clk 0:01:38.5]} 27. Qe4 {[%clk 0:02:00.4]} 27... f5 {[%clk
0:01:36]} 28. Qe2 {[%clk 0:01:29.9]} 28... e4 {[%clk 0:01:33.1]} 29. Qd2 {[%clk
0:01:06.3]} 29... h6 {[%clk 0:01:27.2]} 30. Re2 {[%clk 0:01:01.6]} 30... exd3
{[%clk 0:01:20.6]} 31. Qxd3 {[%clk 0:01:01.2]} 31... Rc8 {[%clk 0:01:13]} 32.
Rc1 {[%clk 0:00:58]} 32... g6 {[%clk 0:01:11.2]} 33. Qf3 {[%clk 0:00:54.7]}
33... Kg7 {[%clk 0:01:07.1]} 34. Qb7+ {[%clk 0:00:53.8]} 34... Rf7 {[%clk
0:01:04]} 35. Qf3 {[%clk 0:00:51.7]} 35... Rd8 {[%clk 0:01:02.7]} 36. Re6 {[%clk
0:00:49.6]} 36... Rd6 {[%clk 0:00:57.9]} 37. Rxd6 {[%clk 0:00:45.2]} 37... Qxd6
{[%clk 0:00:57.5]} 38. Qd3 {[%clk 0:00:45.6]} 38... Rd7 {[%clk 0:00:54.5]} 39.
Rd1 {[%clk 0:00:45.6]} 39... Kf6 {[%clk 0:00:54.1]} 40. Kg1 {[%clk 0:00:40.3]}
40... Qe5 {[%clk 0:00:53.5]} 41. f4 {[%clk 0:00:35]} 41... Qe4 {[%clk
0:00:52.4]} 42. Qb3 {[%clk 0:00:27.4]} 42... d3 {[%clk 0:00:48.4]} 43. Qc3+
{[%clk 0:00:26.2]} 43... Kf7 {[%clk 0:00:43.7]} 44. Qd2 {[%clk 0:00:23.3]} 44...
Qxc4 {[%clk 0:00:41.3]} 45. Rc1 {[%clk 0:00:23]} 45... Qd4+ {[%clk 0:00:38.9]}
46. Kf1 {[%clk 0:00:23]} 46... Qe4 {[%clk 0:00:34.2]} 47. Qa2+ {[%clk
0:00:22.5]} 47... Kg7 {[%clk 0:00:30.7]} 48. Qb2+ {[%clk 0:00:22.2]} 48... Kh7
{[%clk 0:00:30.5]} 49. Rc8 {[%clk 0:00:18.3]} 49... Qf3+ {[%clk 0:00:21.4]} 50.
Ke1 {[%clk 0:00:17.4]} 50... Re7+ {[%clk 0:00:20.3]} 51. Kd2 {[%clk 0:00:12.3]}
51... Re2+ {[%clk 0:00:19.7]} 0-1

[Event "*** Titled Tuesday Blitz"]
[Site "Chess.com"]
[Date "2020.04.07"]
[Round "5"]
[White "vladimirdamjanovic"]
[Black "Sadikhov_Ulvi"]
[Result "0-1"]
[WhiteElo "2514"]
[BlackElo "2717"]
[TimeControl "180+1"]
[EndTime "13:56:45 PDT"]
[Termination "Sadikhov_Ulvi won by resignation"]

1. d4 {[%clk 0:03:00.9]} 1... Nf6 {[%clk 0:02:59.5]} 2. c4 {[%clk 0:02:59.9]}
2... g6 {[%clk 0:02:59.5]} 3. Nc3 {[%clk 0:02:59.5]} 3... Bg7 {[%clk 0:02:59.4]}
4. e4 {[%clk 0:02:59.8]} 4... d6 {[%clk 0:02:59.7]} 5. Be2 {[%clk 0:03:00]} 5...
O-O {[%clk 0:02:59.2]} 6. Be3 {[%clk 0:03:00.5]} 6... a6 {[%clk 0:02:56.6]} 7.
Nf3 {[%clk 0:02:36.4]} 7... c6 {[%clk 0:02:56.4]} 8. O-O {[%clk 0:02:28.4]} 8...
b5 {[%clk 0:02:55.8]} 9. Qc2 {[%clk 0:02:29]} 9... Bb7 {[%clk 0:02:54]} 10. h3
{[%clk 0:02:17.4]} 10... Nbd7 {[%clk 0:02:30.2]} 11. Rad1 {[%clk 0:02:14.5]}
11... Qb8 {[%clk 0:02:22.6]} 12. Rfe1 {[%clk 0:02:07.7]} 12... b4 {[%clk
0:02:12.9]} 13. Na4 {[%clk 0:02:07.2]} 13... c5 {[%clk 0:02:13.1]} 14. d5 {[%clk
0:02:02.8]} 14... Qc7 {[%clk 0:02:12]} 15. Bf4 {[%clk 0:01:53.5]} 15... Nb6
{[%clk 0:01:58.4]} 16. e5 {[%clk 0:01:34.2]} 16... Nh5 {[%clk 0:01:57.9]} 17.
Bh2 {[%clk 0:01:26.8]} 17... Nxa4 {[%clk 0:01:40.9]} 18. Qxa4 {[%clk 0:01:25]}
18... dxe5 {[%clk 0:01:40.5]} 19. Bf1 {[%clk 0:01:23.8]} 19... Nf4 {[%clk
0:01:34.5]} 20. Re4 {[%clk 0:00:30.4]} 20... f5 {[%clk 0:01:27.7]} 21. Ree1
{[%clk 0:00:23.4]} 21... h6 {[%clk 0:01:11.7]} 22. Bxf4 {[%clk 0:00:22.6]} 22...
exf4 {[%clk 0:01:11.3]} 23. Re6 {[%clk 0:00:23.5]} 23... Bf6 {[%clk 0:01:04.1]}
24. d6 {[%clk 0:00:16.6]} 24... exd6 {[%clk 0:00:43.6]} 25. Rdxd6 {[%clk
0:00:17.5]} 25... Qg7 {[%clk 0:00:43.4]} 26. Ne5 {[%clk 0:00:17.5]} 26... Bc8
{[%clk 0:00:31.8]} 27. Nd7 {[%clk 0:00:13.2]} 27... Bxd7 {[%clk 0:00:30.6]} 28.
Rxd7 {[%clk 0:00:14.1]} 28... Rf7 {[%clk 0:00:30.5]} 29. Rdd6 {[%clk 0:00:12.1]}
29... f3 {[%clk 0:00:21.4]} 30. gxf3 {[%clk 0:00:03.3]} 30... Qf8 {[%clk
0:00:18.8]} 31. b3 {[%clk 0:00:02.9]} 31... a5 {[%clk 0:00:17.6]} 32. Ra6 {[%clk
0:00:03]} 32... Rxa6 {[%clk 0:00:16.6]} 33. Rxa6 {[%clk 0:00:03.9]} 33... Kg7
{[%clk 0:00:16.5]} 34. Re6 {[%clk 0:00:03.5]} 34... Qd8 {[%clk 0:00:14.4]} 35.
Qxa5 {[%clk 0:00:02]} 35... Qxa5 {[%clk 0:00:13.4]} 0-1

[Event "*** Titled Tuesday Blitz"]
[Site "Chess.com"]
[Date "2020.04.07"]
[Round "5"]
[White "THORK"]
[Black "biostatistician"]
[Result "1-0"]
[WhiteElo "2346"]
[BlackElo "2500"]
[TimeControl "180+1"]
[EndTime "13:56:45 PDT"]
[Termination "THORK won on time"]

1. d4 {[%clk 0:02:58.9]} 1... d5 {[%clk 0:02:59.9]} 2. Nf3 {[%clk 0:02:55.8]}
2... c6 {[%clk 0:03:00.8]} 3. e3 {[%clk 0:02:54.6]} 3... Nf6 {[%clk 0:03:00]} 4.
c4 {[%clk 0:02:54.9]} 4... Bf5 {[%clk 0:02:57.9]} 5. Nc3 {[%clk 0:02:51.9]} 5...
e6 {[%clk 0:02:56.1]} 6. Nh4 {[%clk 0:02:51.4]} 6... Be4 {[%clk 0:02:56.7]} 7.
Nxe4 {[%clk 0:02:48.5]} 7... Nxe4 {[%clk 0:02:57.6]} 8. Nf3 {[%clk 0:02:48]}
8... Bb4+ {[%clk 0:02:53.5]} 9. Nd2 {[%clk 0:02:44.4]} 9... Qa5 {[%clk
0:02:53.3]} 10. f3 {[%clk 0:02:32.6]} 10... Nxd2 {[%clk 0:02:49.8]} 11. Bxd2
{[%clk 0:02:32.6]} 11... Nd7 {[%clk 0:02:50.4]} 12. a3 {[%clk 0:02:32.3]} 12...
Bxd2+ {[%clk 0:02:49]} 13. Qxd2 {[%clk 0:02:32.6]} 13... Qxd2+ {[%clk
0:02:49.5]} 14. Kxd2 {[%clk 0:02:33.5]} 14... Ke7 {[%clk 0:02:50.2]} 15. Bd3
{[%clk 0:02:30.2]} 15... h6 {[%clk 0:02:47.2]} 16. Rhe1 {[%clk 0:02:28.9]} 16...
Rhd8 {[%clk 0:02:46.1]} 17. Kc3 {[%clk 0:02:28]} 17... Rac8 {[%clk 0:02:41.7]}
18. b4 {[%clk 0:02:27.8]} 18... e5 {[%clk 0:02:34.9]} 19. c5 {[%clk 0:02:19.6]}
19... g6 {[%clk 0:02:27.2]} 20. a4 {[%clk 0:02:14.9]} 20... a6 {[%clk 0:02:19]}
21. Rab1 {[%clk 0:02:13.7]} 21... Ra8 {[%clk 0:02:16.1]} 22. Rb3 {[%clk
0:02:12.3]} 22... f5 {[%clk 0:02:12.9]} 23. Reb1 {[%clk 0:02:10.4]} 23... e4
{[%clk 0:02:13.6]} 24. Bf1 {[%clk 0:02:09.4]} 24... Ra7 {[%clk 0:02:03.7]} 25.
b5 {[%clk 0:02:07.3]} 25... axb5 {[%clk 0:02:03.4]} 26. axb5 {[%clk 0:02:08.2]}
26... Rda8 {[%clk 0:02:03.4]} 27. bxc6 {[%clk 0:01:59]} 27... bxc6 {[%clk
0:02:03.4]} 28. fxe4 {[%clk 0:01:54.1]} 28... fxe4 {[%clk 0:01:56.1]} 29. g3
{[%clk 0:01:54]} 29... Ra2 {[%clk 0:01:50.7]} 30. R1b2 {[%clk 0:01:51.9]} 30...
Rxb2 {[%clk 0:01:47.8]} 31. Rxb2 {[%clk 0:01:51.7]} 31... Ra3+ {[%clk
0:01:47.1]} 32. Kd2 {[%clk 0:01:51.9]} 32... Nf6 {[%clk 0:01:40.8]} 33. Bh3
{[%clk 0:01:50.2]} 33... h5 {[%clk 0:01:29.2]} 34. Rb7+ {[%clk 0:01:34.8]} 34...
Kd8 {[%clk 0:01:27.4]} 35. Rg7 {[%clk 0:01:28.3]} 35... Ra2+ {[%clk 0:01:26]}
36. Ke1 {[%clk 0:01:28.5]} 36... Rxh2 {[%clk 0:01:25.9]} 37. Be6 {[%clk
0:01:24.6]} 37... Rg2 {[%clk 0:01:02.2]} 38. Rxg6 {[%clk 0:01:23.7]} 38... Ke7
{[%clk 0:01:02.5]} 39. Bf5 {[%clk 0:01:21.3]} 39... Kf7 {[%clk 0:00:56.1]} 40.
Rg5 {[%clk 0:01:12]} 40... Rh2 {[%clk 0:00:33]} 41. Kf1 {[%clk 0:01:09.8]} 41...
h4 {[%clk 0:00:29.3]} 42. gxh4 {[%clk 0:01:08.8]} 42... Rxh4 {[%clk 0:00:30.2]}
43. Bg6+ {[%clk 0:01:08]} 43... Ke6 {[%clk 0:00:29.8]} 44. Bf5+ {[%clk
0:01:07.1]} 44... Kf7 {[%clk 0:00:29.8]} 45. Kg2 {[%clk 0:01:06.7]} 45... Rh8
{[%clk 0:00:26.5]} 46. Bg6+ {[%clk 0:01:03.9]} 46... Ke6 {[%clk 0:00:26.4]} 47.
Bf5+ {[%clk 0:01:04]} 47... Kf7 {[%clk 0:00:26.6]} 48. Bh3 {[%clk 0:01:01.1]}
48... Ra8 {[%clk 0:00:23.5]} 49. Kg3 {[%clk 0:01:00.2]} 49... Ra2 {[%clk
0:00:20.4]} 50. Kf4 {[%clk 0:00:56.1]} 50... Rf2+ {[%clk 0:00:14]} 51. Ke5
{[%clk 0:00:55.8]} 51... Rf3 {[%clk 0:00:11.2]} 52. Be6+ {[%clk 0:00:55.8]}
52... Kf8 {[%clk 0:00:10.4]} 53. Rg6 {[%clk 0:00:49]} 53... Nh5 {[%clk
0:00:05.5]} 54. Bg4 {[%clk 0:00:41.9]} 1-0

[Event "*** Titled Tuesday Blitz"]
[Site "Chess.com"]
[Date "2020.04.07"]
[Round "5"]
[White "Kimster98"]
[Black "H3nriqueTV"]
[Result "1-0"]
[WhiteElo "2487"]
[BlackElo "2187"]
[TimeControl "180+1"]
[EndTime "13:56:47 PDT"]
[Termination "Kimster98 won by resignation"]

1. d4 {[%clk 0:03:00.9]} 1... d5 {[%clk 0:02:59.1]} 2. Bf4 {[%clk 0:03:00.9]}
2... Nf6 {[%clk 0:02:58.6]} 3. e3 {[%clk 0:03:01.4]} 3... c6 {[%clk 0:02:58.1]}
4. Bd3 {[%clk 0:02:59.1]} 4... e6 {[%clk 0:02:54.9]} 5. Nd2 {[%clk 0:02:55.8]}
5... Bd6 {[%clk 0:02:54]} 6. Bxd6 {[%clk 0:02:53]} 6... Qxd6 {[%clk 0:02:53.7]}
7. f4 {[%clk 0:02:53.9]} 7... Nbd7 {[%clk 0:02:50.2]} 8. Ngf3 {[%clk 0:02:54.2]}
8... Ng4 {[%clk 0:02:49.5]} 9. Qe2 {[%clk 0:02:51.3]} 9... f5 {[%clk 0:02:49.4]}
10. c4 {[%clk 0:02:47.4]} 10... O-O {[%clk 0:02:29.3]} 11. h3 {[%clk 0:02:42.7]}
11... Ngf6 {[%clk 0:02:28]} 12. Ne5 {[%clk 0:02:43.3]} 12... Ne4 {[%clk
0:02:27.1]} 13. Nxd7 {[%clk 0:02:28.5]} 13... Bxd7 {[%clk 0:02:26.2]} 14. Bxe4
{[%clk 0:02:27.2]} 14... dxe4 {[%clk 0:02:15.8]} 15. c5 {[%clk 0:02:26.6]} 15...
Qe7 {[%clk 0:02:15]} 16. Nc4 {[%clk 0:02:25.4]} 16... b6 {[%clk 0:02:02.6]} 17.
b4 {[%clk 0:02:10.6]} 17... Rab8 {[%clk 0:01:59.8]} 18. O-O {[%clk 0:01:58.7]}
18... Bc8 {[%clk 0:01:58.9]} 19. Ne5 {[%clk 0:01:53.4]} 19... Bd7 {[%clk
0:01:33.7]} 20. Rab1 {[%clk 0:01:47.2]} 20... Kh8 {[%clk 0:01:22.8]} 21. Qc2
{[%clk 0:01:39.6]} 21... b5 {[%clk 0:01:21.2]} 22. a4 {[%clk 0:01:37.3]} 22...
a6 {[%clk 0:01:18.9]} 23. axb5 {[%clk 0:01:36.7]} 23... Rxb5 {[%clk 0:01:18]}
24. Ra1 {[%clk 0:01:33]} 24... Rfb8 {[%clk 0:01:11.1]} 25. Rfb1 {[%clk
0:01:27.5]} 25... Ra8 {[%clk 0:00:51.9]} 26. Ra5 {[%clk 0:01:23]} 26... Be8
{[%clk 0:00:48.4]} 27. Qc3 {[%clk 0:01:15.9]} 27... Qb7 {[%clk 0:00:48]} 28. Nc4
{[%clk 0:01:10.2]} 28... Rxa5 {[%clk 0:00:35.8]} 29. Nxa5 {[%clk 0:01:11.1]}
29... Qb5 {[%clk 0:00:35.8]} 30. Qc4 {[%clk 0:01:07.1]} 30... Qa4 {[%clk
0:00:30.6]} 31. Qxe6 {[%clk 0:00:48.1]} 31... Qc2 {[%clk 0:00:30.2]} 32. Qb3
{[%clk 0:00:47.3]} 32... Qe2 {[%clk 0:00:28.9]} 33. Qc3 {[%clk 0:00:40.9]} 33...
Rb8 {[%clk 0:00:24.2]} 34. Rb2 {[%clk 0:00:29.5]} 34... Qd1+ {[%clk 0:00:23.6]}
35. Kh2 {[%clk 0:00:30]} 35... Qf1 {[%clk 0:00:15.4]} 36. Rd2 {[%clk 0:00:20]}
36... Rd8 {[%clk 0:00:14.7]} 37. Nc4 {[%clk 0:00:14.5]} 37... Bd7 {[%clk
0:00:13.8]} 38. d5 {[%clk 0:00:13.5]} 38... cxd5 {[%clk 0:00:12.3]} 39. Rxd5
{[%clk 0:00:13.5]} 39... Qb1 {[%clk 0:00:04.1]} 40. Nb6 {[%clk 0:00:09.7]} 1-0

[Event "*** Titled Tuesday Blitz"]
[Site "Chess.com"]
[Date "2020.04.07"]
[Round "5"]
[White "igorkovalenko"]
[Black "VincentKeymer"]
[Result "1-0"]
[WhiteElo "2912"]
[BlackElo "2662"]
[TimeControl "180+1"]
[EndTime "13:56:48 PDT"]
[Termination "igorkovalenko won by resignation"]

1. c4 {[%clk 0:03:00.9]} 1... e6 {[%clk 0:02:58.7]} 2. Nc3 {[%clk 0:03:00.6]}
2... d5 {[%clk 0:02:58.8]} 3. d4 {[%clk 0:03:01.1]} 3... Nf6 {[%clk 0:02:58.6]}
4. Bg5 {[%clk 0:02:59.3]} 4... Be7 {[%clk 0:02:55.3]} 5. e3 {[%clk 0:02:59.4]}
5... h6 {[%clk 0:02:55.5]} 6. Bh4 {[%clk 0:02:59.6]} 6... O-O {[%clk 0:02:55.8]}
7. Nf3 {[%clk 0:02:59.8]} 7... Nbd7 {[%clk 0:02:56.4]} 8. Rc1 {[%clk 0:02:51.6]}
8... c5 {[%clk 0:02:55.5]} 9. dxc5 {[%clk 0:02:38]} 9... Nxc5 {[%clk 0:02:54.4]}
10. cxd5 {[%clk 0:02:35.8]} 10... g5 {[%clk 0:02:54.7]} 11. Bg3 {[%clk
0:02:35.3]} 11... Nxd5 {[%clk 0:02:55.3]} 12. Nxd5 {[%clk 0:02:27.6]} 12... Qxd5
{[%clk 0:02:55.8]} 13. Qxd5 {[%clk 0:02:27.1]} 13... exd5 {[%clk 0:02:56.7]} 14.
Be2 {[%clk 0:02:23.5]} 14... Bd7 {[%clk 0:02:54.6]} 15. O-O {[%clk 0:02:23.3]}
15... Rac8 {[%clk 0:02:54]} 16. Rcd1 {[%clk 0:02:17.2]} 16... Be6 {[%clk
0:02:44.3]} 17. Be5 {[%clk 0:02:12.1]} 17... f6 {[%clk 0:02:40.8]} 18. Bd4
{[%clk 0:02:12.3]} 18... a6 {[%clk 0:02:38.8]} 19. Nd2 {[%clk 0:02:03.1]} 19...
Rfd8 {[%clk 0:02:34.8]} 20. Nb1 {[%clk 0:01:42.2]} 20... Ne4 {[%clk 0:02:28]}
21. Nc3 {[%clk 0:01:27.9]} 21... Nxc3 {[%clk 0:02:17.7]} 22. Bxc3 {[%clk
0:01:28.8]} 22... Kg7 {[%clk 0:02:12.6]} 23. a3 {[%clk 0:01:25.1]} 23... Bd6
{[%clk 0:02:02.5]} 24. Rd2 {[%clk 0:00:58.9]} 24... Be5 {[%clk 0:02:00.6]} 25.
Ba5 {[%clk 0:00:58.7]} 25... Rd7 {[%clk 0:01:54.2]} 26. Rfd1 {[%clk 0:00:57.9]}
26... Rc6 {[%clk 0:01:35.9]} 27. Bf3 {[%clk 0:00:55]} 27... b6 {[%clk
0:01:33.3]} 28. Bc3 {[%clk 0:00:46.9]} 28... Bxc3 {[%clk 0:01:32.2]} 29. bxc3
{[%clk 0:00:47.8]} 29... Rxc3 {[%clk 0:01:32.8]} 30. a4 {[%clk 0:00:47]} 30...
Rb3 {[%clk 0:01:26.3]} 31. h3 {[%clk 0:00:45.7]} 31... Rb4 {[%clk 0:01:23.9]}
32. a5 {[%clk 0:00:39]} 32... b5 {[%clk 0:01:23.9]} 33. Ra1 {[%clk 0:00:24.7]}
33... Kf7 {[%clk 0:01:16.9]} 34. Be2 {[%clk 0:00:20.6]} 34... Rc7 {[%clk
0:01:11.1]} 35. Bf3 {[%clk 0:00:19.8]} 35... Rbc4 {[%clk 0:01:10.8]} 36. Bxd5
{[%clk 0:00:14.3]} 36... Rc1+ {[%clk 0:01:10.8]} 37. Rxc1 {[%clk 0:00:14]} 37...
Rxc1+ {[%clk 0:01:10.2]} 38. Kh2 {[%clk 0:00:14.5]} 38... Bxd5 {[%clk
0:01:10.6]} 39. Rxd5 {[%clk 0:00:15.4]} 39... Ra1 {[%clk 0:01:11.1]} 40. f4
{[%clk 0:00:15.5]} 40... Rxa5 {[%clk 0:01:10.5]} 41. f5 {[%clk 0:00:15.3]} 41...
Ke7 {[%clk 0:01:10.3]} 42. Rc5 {[%clk 0:00:14.6]} 42... Kd6 {[%clk 0:01:10.5]}
43. Rc8 {[%clk 0:00:14.8]} 43... Ke5 {[%clk 0:01:09.5]} 44. g4 {[%clk
0:00:14.4]} 44... Ke4 {[%clk 0:01:09.3]} 45. Kg3 {[%clk 0:00:14.1]} 45... Ra3
{[%clk 0:01:07.9]} 46. Re8+ {[%clk 0:00:14.2]} 46... Kd3 {[%clk 0:01:08.3]} 47.
Re6 {[%clk 0:00:14.8]} 47... b4 {[%clk 0:01:07.5]} 48. Rxf6 {[%clk 0:00:14]}
48... Kc2 {[%clk 0:01:06.1]} 49. Rb6 {[%clk 0:00:12.6]} 49... Rxe3+ {[%clk
0:01:03.4]} 50. Kf2 {[%clk 0:00:13]} 50... Re4 {[%clk 0:01:03.1]} 51. Rxa6
{[%clk 0:00:09.8]} 51... b3 {[%clk 0:01:03.2]} 52. Kf3 {[%clk 0:00:08.9]} 52...
Rf4+ {[%clk 0:01:02.4]} 53. Ke3 {[%clk 0:00:09.4]} 53... b2 {[%clk 0:01:02.8]}
54. Rb6 {[%clk 0:00:08.9]} 54... Kc3 {[%clk 0:01:03]} 55. f6 {[%clk 0:00:07.3]}
55... Rxf6 {[%clk 0:01:03]} 56. Rxf6 {[%clk 0:00:07.2]} 56... b1=Q {[%clk
0:01:00.2]} 57. Rc6+ {[%clk 0:00:07.4]} 57... Kb3 {[%clk 0:01:00]} 58. Rb6+
{[%clk 0:00:08.3]} 58... Kc2 {[%clk 0:01:00.8]} 59. Rxb1 {[%clk 0:00:09.2]}
59... Kxb1 {[%clk 0:01:01.7]} 60. Ke4 {[%clk 0:00:09.8]} 60... Kc2 {[%clk
0:01:02.2]} 61. Kf5 {[%clk 0:00:10.7]} 61... Kd3 {[%clk 0:01:02.7]} 62. Kg6
{[%clk 0:00:11.6]} 62... Ke3 {[%clk 0:01:03.1]} 63. Kxh6 {[%clk 0:00:11.9]}
63... Kf4 {[%clk 0:01:03.8]} 64. Kh5 {[%clk 0:00:12.2]} 64... Kg3 {[%clk
0:01:04.2]} 65. Kxg5 {[%clk 0:00:12.8]} 65... Kxh3 {[%clk 0:01:05]} 66. Kf5
{[%clk 0:00:13.5]} 66... Kg3 {[%clk 0:01:05.7]} 67. g5 {[%clk 0:00:14.4]} 67...
Kf3 {[%clk 0:01:06.4]} 68. g6 {[%clk 0:00:15.2]} 68... Ke3 {[%clk 0:01:07.3]}
69. g7 {[%clk 0:00:15.6]} 1-0